fUST/lending_fUST_20250829
["ID","MTS","AMOUNT","RATE_DAILY","PERIOD"]
[381953114,1756445440747,-500.0,0.00023071,2]
[381953116,1756445440756,-250.0,0.00023071,2]
[381953118,1756445440766,-250.0,0.00023071,2]
[381953120,1756445440775,-250.0,0.00023071,2]
[381953122,1756445440785,-213.81738403,0.00023071,2]
[381953124,1756445440794,-250.0,0.00023071,2]
[381953134,1756445440888,-250.0,0.00023071,2]
[381953135,1756445440898,-2347.87260389,0.00023071,2]
[381953136,1756445440908,-250.0,0.00023071,2]
[381953137,1756445440917,-250.0,0.00023071,2]
[381953138,1756445440926,-304.89319291,0.00023071,2]
[381953139,1756445440936,-187.78006525,0.00023071,2]
[381953140,1756445440945,-151.0,0.00023071,2]
[381953141,1756445440955,-151.0,0.00023071,2]
[381953142,1756445440964,-151.0,0.00023071,2]
[381953143,1756445440975,-151.0,0.00023071,2]
[381953144,1756445440984,-151.0,0.00023071,2]
[381953145,1756445440994,-151.0,0.00023071,2]
[381953146,1756445441003,-151.0,0.00023071,2]
[381953147,1756445441013,-151.0,0.00023071,2]
[381953148,1756445441022,-151.0,0.00023071,2]
[381953149,1756445441032,-151.0,0.00023071,2]
[381953150,1756445441042,-151.0,0.00023071,2]
[381953152,1756445441051,-501.40282483,0.00023073,2]
[381953154,1756445441060,-500.0,0.00023085,2]
[381953156,1756445441070,-2434.74389024,0.00023126,2]
[381953158,1756445441079,-2524.82941417,0.00023181,2]
[381953160,1756445441088,-2618.2481025,0.00023236,2]
[381953162,1756445441100,-1029.10657735,0.00023237,2]
[381953164,1756445441109,-1970.03224119,0.00023291,2]
[381953166,1756445441118,-1261.08,0.0002335,3]
[381953168,1756445441127,-882.98,0.0002335,3]
[381953170,1756445441137,-441.48,0.0002335,3]
[381953172,1756445441146,-500.0,0.00023359,2]
[381953174,1756445441156,-1000.0,0.00023421,2]
[381953176,1756445441167,-501.59961857,0.00023421,2]
[381953178,1756445441178,-168.9190779,0.00023421,2]
[381953180,1756445441187,-501.32454874,0.00023421,2]
[381953182,1756445441196,-1000.0,0.00023421,2]
[381953184,1756445441206,-1000.0,0.00023421,2]
[381953185,1756445441215,-760.70479331,0.00023421,2]
[381953187,1756445441225,-1000.0,0.00023421,2]
[381953189,1756445441235,-250.0,0.00023421,2]
[381953191,1756445441244,-1000.0,0.00023421,2]
[381953194,1756445441254,-1000.0,0.00023421,2]
[381953195,1756445441264,-1000.0,0.00023421,2]
[381953197,1756445441273,-500.14150593,0.00023421,2]
[381953199,1756445441283,-1000.0,0.00023421,2]
[381953201,1756445441292,-622.56199784,0.00023421,2]
[381953203,1756445441301,-1000.0,0.00023421,2]
[381953205,1756445441310,-1000.0,0.00023421,2]
[381953207,1756445441320,-515.97914192,0.00023421,2]
[381953209,1756445441329,-502.12918669,0.00023421,2]
[381953211,1756445441339,-503.53147026,0.00023421,2]
[381953213,1756445441348,-500.0,0.00023421,2]
[381953215,1756445441357,-1000.0,0.00023421,2]
[381953217,1756445441367,-260.0,0.00023441,2]
[381953219,1756445441376,-187.03883194,0.00023481,2]
[381953221,1756445441385,-278.535201,0.00023525,2]
[381953223,1756445441395,-2000.0,0.00023616,2]
[381953225,1756445441404,-2000.0,0.00023616,2]
[381953227,1756445441413,-2000.0,0.00023616,2]
[381953229,1756445441423,-2000.0,0.00023616,2]
[381953231,1756445441433,-500.0,0.00023633,2]
[381953233,1756445441442,-6387.9,0.000238,7]
[381953235,1756445441451,-1091.03,0.000238,7]
[381953237,1756445441460,-161.0,0.000239,5]
[381953239,1756445441470,-1029.10657735,0.00023905,2]
[381953241,1756445441479,-500.0,0.00023907,2]
[381953243,1756445441488,-163.37366008,0.00023968,2]
[381953245,1756445441498,-1500.0,0.00023968,2]
[381953247,1756445441507,-1500.0,0.00023968,2]
[381953249,1756445441517,-1500.0,0.00023968,2]
[381953251,1756445441526,-350.0,0.00023968,2]
[381953253,1756445441535,-1500.0,0.00023968,2]
[381953255,1756445441545,-1500.0,0.00023968,2]
[381953257,1756445441554,-1376.0520506,0.00023968,2]
[381953259,1756445441564,-1022.1386741,0.00023968,2]
[381953261,1756445441573,-1500.0,0.00023968,2]
[381953263,1756445441582,-339.95306968,0.00023968,2]
[381953265,1756445441591,-1500.0,0.00023968,2]
[381953267,1756445441600,-893.51624995,0.00023976,2]
[381953269,1756445441609,-45016.8046969,0.00023976,2]
[381953271,1756445441618,-12285.8615745,0.00023976,2]
[381953273,1756445441628,-423.281792,0.00023976,7]
[381953275,1756445441637,-423.281792,0.00023976,7]
[381953277,1756445441646,-423.281792,0.00023976,7]
[381953279,1756445441656,-423.281792,0.00023976,7]
[381953281,1756445441665,-151.0,0.00023976,7]
[381953283,1756445441674,-151.0,0.00023976,7]
[381953285,1756445441683,-151.0,0.00023976,7]
[381953287,1756445441692,-151.0,0.00023976,7]
[381953288,1756445441701,-151.0,0.00023976,7]
[381953291,1756445441711,-151.0,0.00023976,7]
[381953293,1756445441720,-284.96854359,0.0002398,2]
[381953295,1756445441730,-360.0,0.00023989,2]
[381953296,1756445441740,-261.05,0.00024,14]
[381953298,1756445441749,-232.6790651,0.00024,7]
[381953300,1756445441759,-845.57753514,0.00024,7]
[381953302,1756445441768,-160.0,0.00024,7]
[381953304,1756445441777,-160.0,0.00024,7]
[381953306,1756445441787,-1705.17140275,0.00024,2]
[381953308,1756445441796,-31709.14916723,0.00024,5]
[381953506,1756446202782,165.008113,0.00013699,2]
[381953509,1756446584544,-178.86528761,0.00019673,2]
[381953595,1756446638295,-599.91412644,0.00019673,2]
[381953601,1756446638416,-6823.6450068,0.00019773,2]
[381953602,1756446638426,-1200.0,0.00019897,2]
[381953603,1756446638435,-300.0,0.00019899,2]
[381953604,1756446638444,-851.2713783,0.000199,2]
[381953605,1756446638455,-2984.3098099,0.000199,2]
[381953606,1756446638464,-160.0,0.0002,3]
[381953607,1756446638474,-160.0,0.0002,3]
[381953608,1756446638484,-1200.0,0.00020401,2]
[381953609,1756446638493,-273.372353,0.00020402,2]
[381953610,1756446638503,-776.66523145,0.00020459,2]
[381953611,1756446638514,-165.008113,0.00020548,2]
[381953612,1756446638524,-602.25043187,0.00020885,2]
[381953613,1756446638535,-1223.31229043,0.00021152,2]
[381953614,1756446638544,-2879.5978392,0.00021162,2]
[381953615,1756446638554,-590.28,0.0002119,10]
[381953616,1756446638565,-319.18856045,0.00021199,2]
[381953617,1756446638574,-245.4278634,0.00021199,2]
[381953618,1756446638583,-500.0,0.00021199,2]
[381953619,1756446638594,-500.0,0.00021199,2]
[381953620,1756446638604,-9.8459773,0.00021199,2]
[381953621,1756446638627,-490.1540227,0.00021199,2]
[381953622,1756446638636,-500.0,0.00021199,2]
[381953623,1756446638646,-330.45313705,0.00021199,2]
[381953624,1756446638655,-301.78245724,0.00021199,2]
[381953625,1756446638664,-500.0,0.00021199,2]
[381953626,1756446638674,-500.0,0.00021199,2]
[381953627,1756446638683,-500.0,0.00021199,2]
[381953628,1756446638692,-500.0,0.00021199,2]
[381953629,1756446638701,-500.0,0.00021199,2]
[381953630,1756446638710,-500.0,0.00021199,2]
[381953631,1756446638720,-500.0,0.00021199,2]
[381953632,1756446638729,-500.0,0.00021199,2]
[381953633,1756446638739,-500.0,0.00021199,2]
[381953634,1756446638749,-500.0,0.00021199,2]
[381953635,1756446638759,-329.09021539,0.00021199,2]
[381953636,1756446638768,-500.0,0.00021199,2]
[381953637,1756446638777,-548.51197458,0.00021199,2]
[381953638,1756446638787,-500.0,0.00021199,2]
[381953639,1756446638796,-500.0,0.00021199,2]
[381953640,1756446638805,-500.0,0.00021199,2]
[381953641,1756446638815,-500.0,0.00021199,2]
[381953642,1756446638825,-500.0,0.00021199,2]
[381953643,1756446638835,-500.0,0.00021199,2]
[381953644,1756446638844,-500.0,0.00021199,2]
[381953645,1756446638853,-500.0,0.00021199,2]
[381953646,1756446638863,-385.27485169,0.00021199,2]
[381953647,1756446638872,-500.0,0.00021199,2]
[381953648,1756446638882,-596.37335855,0.00021199,2]
[381953649,1756446638891,-500.0,0.00021199,2]
[381953650,1756446638901,-500.0,0.00021199,2]
[381953651,1756446638911,-500.0,0.00021199,2]
[381953652,1756446638921,-500.0,0.00021199,2]
[381953653,1756446638930,-530.09691821,0.00021199,2]
[381953654,1756446638939,-500.0,0.00021199,2]
[381953655,1756446638949,-500.0,0.00021199,2]
[381953656,1756446638959,-317.63424453,0.00021199,2]
[381953657,1756446638969,-500.0,0.00021199,2]
[381953658,1756446638979,-500.0,0.00021199,2]
[381953659,1756446638989,-500.0,0.00021199,2]
[381953660,1756446638999,-500.0,0.00021199,2]
[381953661,1756446639009,-344.63374816,0.00021199,2]
[381953662,1756446639019,-500.0,0.00021199,2]
[381953663,1756446639028,-500.0,0.00021199,2]
[381953664,1756446639038,-500.0,0.00021199,2]
[381953665,1756446639047,-500.0,0.00021199,2]
[381953666,1756446639057,-500.0,0.00021199,2]
[381953667,1756446639067,-500.0,0.00021199,2]
[381953668,1756446639077,-500.0,0.00021199,2]
[381953669,1756446639087,-500.0,0.00021199,2]
[381953670,1756446639097,-500.0,0.00021199,2]
[381953671,1756446639107,-500.0,0.00021199,2]
[381953672,1756446639117,-500.0,0.00021199,2]
[381953673,1756446639127,-500.0,0.00021199,2]
[381953674,1756446639136,-500.0,0.00021199,2]
[381953675,1756446639146,-500.0,0.00021199,2]
[381953676,1756446639156,-500.0,0.00021199,2]
[381953677,1756446639166,-500.0,0.00021199,2]
[381953678,1756446639176,-500.0,0.00021199,2]
[381953679,1756446639186,-500.0,0.00021199,2]
[381953680,1756446639196,-500.0,0.00021199,2]
[381953681,1756446639206,-500.0,0.00021199,2]
[381953682,1756446639215,-500.0,0.00021199,2]
[381953683,1756446639225,-500.0,0.00021199,2]
[381953684,1756446639235,-171.21860685,0.00021199,2]
[381953685,1756446639245,-500.0,0.00021199,2]
[381953686,1756446639255,-500.0,0.00021199,2]
[381953687,1756446639264,-500.0,0.00021199,2]
[381953688,1756446639273,-500.0,0.00021199,2]
[381953689,1756446639283,-500.0,0.00021199,2]
[381953690,1756446639293,-500.0,0.00021199,2]
[381953691,1756446639303,-500.0,0.00021199,2]
[381953692,1756446639313,-500.0,0.00021199,2]
[381953693,1756446639323,-500.0,0.00021199,2]
[381953694,1756446639333,-500.0,0.00021199,2]
[381953695,1756446639342,-500.0,0.00021199,2]
[381953696,1756446639352,-500.0,0.00021199,2]
[381953697,1756446639361,-500.0,0.00021199,2]
[381953698,1756446639371,-500.0,0.00021199,2]
[381953699,1756446639381,-500.0,0.00021199,2]
[381953700,1756446639390,-500.0,0.00021199,2]
[381953701,1756446639399,-611.42030812,0.00021199,2]
[381953702,1756446639408,-500.0,0.00021199,2]
[381953703,1756446639417,-500.0,0.00021199,2]
[381953704,1756446639426,-500.0,0.00021199,2]
[381953705,1756446639435,-500.0,0.00021199,2]
[381953706,1756446639445,-500.0,0.00021199,2]
[381953707,1756446639454,-500.0,0.00021199,2]
[381953708,1756446639463,-500.0,0.00021199,2]
[381953709,1756446639472,-500.0,0.00021199,2]
[381953710,1756446639481,-500.0,0.00021199,2]
[381953711,1756446639490,-500.0,0.00021199,2]
[381953712,1756446639498,-500.0,0.00021199,2]
[381953713,1756446639508,-500.0,0.00021199,2]
[381953714,1756446639522,-500.0,0.00021199,2]
[381953715,1756446639532,-500.0,0.00021199,2]
[381953716,1756446639541,-500.0,0.00021199,2]
[381953717,1756446639550,-500.0,0.00021199,2]
[381953718,1756446639558,-500.0,0.00021199,2]
[381953719,1756446639567,-500.0,0.00021199,2]
[381953720,1756446639577,-319.21951296,0.00021199,2]
[381953721,1756446639586,-500.0,0.00021199,2]
[381953722,1756446639596,-935619.6555771,0.000212,2]
[381953790,1756446985527,175.0,0.00027397,120]
[381953791,1756447071707,165.008113,0.00013699,2]
[381953793,1756447256352,201.68,0.00027397,120]
[381953854,1756447838615,-938.83324033,0.00018472,2]
[381953855,1756447838626,-3751.57762837,0.00018472,2]
[381953856,1756447838635,-400.0,0.00019444,2]
[381953857,1756447838644,-257.523794,0.00019863,2]
[381953858,1756447838653,-300.0,0.00019899,2]
[381953859,1756447838663,-4286.20864059,0.000199,2]
[381953860,1756447838673,-238.8779796,0.0001996,2]
[381953861,1756447838682,-1158.67744204,0.0002,2]
[381953862,1756447838692,-160.0,0.0002,3]
[381953863,1756447838701,-615.083072,0.00020518,2]
[381953864,1756447838710,-482.98732153,0.00020563,2]
[381953865,1756447838719,-241.49366076,0.00020634,2]
[381953866,1756447838729,-150.0,0.00021,2]
[381953867,1756447838739,-2519.6481093,0.00021057,2]
[381953868,1756447838748,-1029.10657736,0.00021073,2]
[381953869,1756447838758,-4528.98807348,0.00021073,2]
[381953870,1756447838767,-963836.51339377,0.000211,2]
[381953881,1756447845235,1000.0,0.00027,120]
[381953897,1756447984760,165.008113,0.00013699,2]
[381953899,1756448161463,-426.885,0.00018986,2]
[381953900,1756448161486,-426.885,0.00019178,2]
[381953901,1756448161499,-1596.23,0.00019178,2]
[381953902,1756448196478,300.0,0.00030265,60]
[381953903,1756448230403,500.0,0.00030265,60]
[381953904,1756448366527,299.819799,0.00027,120]
[381953906,1756448879587,787.73,0.00014,10]
[381953926,1756449032702,-2976.885,0.00019178,2]
[381953927,1756449032712,-341.9881509,0.00019768,2]
[381953928,1756449032721,-2706.19747271,0.000199,2]
[381953966,1756449038625,-1338.5961193,0.000199,2]
[381953968,1756449038635,-206.019035,0.00019937,2]
[381953970,1756449038644,-160.0,0.0002,3]
[381953972,1756449038653,-160.0,0.0002,3]
[381953974,1756449038664,-254.70323581,0.00020522,2]
[381953976,1756449038673,-175.0,0.00020957,2]
[381953978,1756449038682,-236.33448989,0.00020972,2]
[381953981,1756449038694,-63.66551011,0.00020972,2]
[381953983,1756449038703,-3019.32538232,0.00020973,2]
[381953985,1756449038712,-6579.09041627,0.00021,5]
[381953987,1756449038721,-272.07659332,0.00021,2]
[381953989,1756449038730,-203.53172818,0.00021,2]
[381953991,1756449038739,-324.05624537,0.00021,2]
[381953992,1756449038748,-2347.87260389,0.00021047,2]
[381953994,1756449038758,-223.43199231,0.00021049,2]
[381953996,1756449038768,-500.0,0.00021049,2]
[381953999,1756449038778,-500.0,0.00021049,2]
[381954001,1756449038788,-500.0,0.00021049,2]
[381954002,1756449038797,-500.0,0.00021049,2]
[381954004,1756449038807,-500.0,0.00021049,2]
[381954006,1756449038816,-500.0,0.00021049,2]
[381954008,1756449038826,-500.0,0.00021049,2]
[381954010,1756449038835,-500.0,0.00021049,2]
[381954012,1756449038844,-490.1540227,0.00021049,2]
[381954014,1756449038854,-297.59550552,0.00021049,2]
[381954018,1756449038869,-202.40449448,0.00021049,2]
[381954020,1756449038878,-224.48050552,0.00021049,2]
[381954562,1756449044300,-177.69683541,0.00020951,2]
[381954570,1756449044366,-645.58842647,0.00020951,2]
[381954572,1756449044377,-823.28526188,0.00020964,2]
[381954574,1756449044387,-823.28526188,0.00020977,2]
[381954576,1756449044396,-362.3,0.0002104,10]
[381954578,1756449044406,-275.51949448,0.00021049,2]
[381954580,1756449044417,-94.44474648,0.00021049,2]
[381954901,1756449250115,165.008113,0.00013699,2]
[381954903,1756449255474,3908.88760223,0.000167,2]
[381954904,1756449255497,6091.11239777,0.000167,2]
[381954905,1756449272698,3908.89760223,0.000167,2]
[381954906,1756449272720,6091.10239777,0.000167,2]
[381954907,1756449295018,3908.90760223,0.000167,2]
[381954908,1756449295040,6091.09239777,0.000167,2]
[381954915,1756449824997,7070.0,0.0001681,2]
[381954916,1756449933165,1000.0,0.0002737,120]
[381954917,1756450007480,2000.0,0.0002737,120]
[381954918,1756450026968,1000.0,0.0002737,120]
[381954919,1756450073843,5000.0,0.000173,6]
[381954920,1756450082666,5000.0,0.000173,6]
[381954922,1756450136053,151.0,0.0001,16]
[381954923,1756450137374,218.0,0.0001,16]
[381954924,1756450139184,246.0,0.0001,30]
[381954997,1756450232033,-1127.10587126,0.00017243,2]
[381954998,1756450232045,-3872.89412874,0.00017243,2]
[381954999,1756450232055,-3808.49183605,0.00017417,2]
[381955000,1756450232065,-908.0,0.00017517,2]
[381955001,1756450232074,-300.0,0.00017773,2]
[381955002,1756450232084,-300.0,0.00017773,2]
[381955003,1756450232094,-300.0,0.00017773,2]
[381955004,1756450232103,-300.0,0.00017773,2]
[381955005,1756450232113,-1200.0,0.00017773,2]
[381955006,1756450232122,-300.0,0.00017773,2]
[381955007,1756450232132,-2090.9423105,0.00018071,2]
[381955008,1756450232141,-963.307768,0.00018158,2]
[381955009,1756450232150,-206.63770434,0.00018252,2]
[381955010,1756450232162,-1586.85469866,0.00018252,2]
[381955011,1756450232171,-250.0,0.00018289,2]
[381955012,1756450232181,-3103.55426486,0.00019077,2]
[381955013,1756450232190,-162.54135741,0.00019132,2]
[381955014,1756450232200,-649.51526422,0.00019132,2]
[381955015,1756450232209,-4897.76338557,0.00019178,2]
[381955016,1756450232218,-420.0,0.00019397,2]
[381955017,1756450232228,-420.0,0.00019397,2]
[381955018,1756450232238,-312.0,0.00019397,2]
[381955019,1756450232247,-480.0,0.00019492,2]
[381955020,1756450232256,-164.815228,0.00019863,2]
[381955021,1756450232266,-2893.39547626,0.00019877,3]
[381955022,1756450232275,-4906.19071167,0.000199,2]
[381955023,1756450232284,-151.0,0.0001993,2]
[381955024,1756450232293,-5183.35542111,0.00019939,2]
[381955025,1756450232303,-385.27485169,0.0001994,2]
[381955026,1756450232416,-500.0,0.0001994,2]
[381955027,1756450232427,-500.0,0.0001994,2]
[381955028,1756450232437,-500.0,0.0001994,2]
[381955029,1756450232446,-500.0,0.0001994,2]
[381955030,1756450232455,-500.0,0.0001994,2]
[381955031,1756450232464,-500.0,0.0001994,2]
[381955032,1756450232474,-500.0,0.0001994,2]
[381955033,1756450232483,-500.0,0.0001994,2]
[381955034,1756450232492,-500.0,0.0001994,2]
[381955035,1756450232501,-301.78245724,0.0001994,2]
[381955036,1756450232511,-500.0,0.0001994,2]
[381955037,1756450232520,-329.09021539,0.0001994,2]
[381955038,1756450232529,-500.0,0.0001994,2]
[381955039,1756450232538,-500.0,0.0001994,2]
[381955040,1756450232548,-500.0,0.0001994,2]
[381955041,1756450232557,-500.0,0.0001994,2]
[381955042,1756450232567,-500.0,0.0001994,2]
[381955043,1756450232576,-330.45313705,0.0001994,2]
[381955044,1756450232585,-500.0,0.0001994,2]
[381955045,1756450232597,-500.0,0.0001994,2]
[381955046,1756450232606,-500.0,0.0001994,2]
[381955047,1756450232615,-500.0,0.0001994,2]
[381955048,1756450232625,-500.0,0.0001994,2]
[381955049,1756450232634,-522.72717826,0.0001994,2]
[381955050,1756450232643,-500.0,0.0001994,2]
[381955051,1756450232653,-500.0,0.0001994,2]
[381955052,1756450232662,-500.0,0.0001994,2]
[381955053,1756450232671,-500.0,0.0001994,2]
[381955054,1756450232681,-530.09691821,0.0001994,2]
[381955055,1756450232691,-500.0,0.0001994,2]
[381955056,1756450232701,-500.0,0.0001994,2]
[381955057,1756450232710,-500.0,0.0001994,2]
[381955058,1756450232719,-500.0,0.0001994,2]
[381955059,1756450232729,-548.51197458,0.0001994,2]
[381955060,1756450232738,-500.0,0.0001994,2]
[381955061,1756450232748,-405.02746441,0.0001994,2]
[381955062,1756450232757,-500.0,0.0001994,2]
[381955063,1756450232767,-636.21833501,0.0001994,2]
[381955064,1756450232777,-500.0,0.0001994,2]
[381955065,1756450232786,-500.0,0.0001994,2]
[381955066,1756450232796,-500.0,0.0001994,2]
[381955067,1756450232805,-500.0,0.0001994,2]
[381955068,1756450232815,-500.0,0.0001994,2]
[381955069,1756450232825,-500.0,0.0001994,2]
[381955070,1756450232835,-500.0,0.0001994,2]
[381955071,1756450232846,-500.0,0.0001994,2]
[381955072,1756450232856,-500.0,0.0001994,2]
[381955073,1756450232867,-500.0,0.0001994,2]
[381955074,1756450232877,-500.0,0.0001994,2]
[381955075,1756450232886,-500.0,0.0001994,2]
[381955076,1756450232896,-500.0,0.0001994,2]
[381955077,1756450232906,-500.0,0.0001994,2]
[381955078,1756450232915,-500.0,0.0001994,2]
[381955079,1756450232926,-500.0,0.0001994,2]
[381955080,1756450232935,-481.46565732,0.0001994,2]
[381955081,1756450232944,-500.0,0.0001994,2]
[381955082,1756450232954,-500.0,0.0001994,2]
[381955083,1756450232967,-500.0,0.0001994,2]
[381955084,1756450232976,-500.0,0.0001994,2]
[381955085,1756450232985,-500.0,0.0001994,2]
[381955086,1756450232995,-500.0,0.0001994,2]
[381955087,1756450233004,-500.0,0.0001994,2]
[381955088,1756450233014,-500.0,0.0001994,2]
[381955089,1756450233024,-500.0,0.0001994,2]
[381955090,1756450233033,-500.0,0.0001994,2]
[381955091,1756450233045,-500.0,0.0001994,2]
[381955092,1756450233055,-500.0,0.0001994,2]
[381955093,1756450233064,-500.0,0.0001994,2]
[381955094,1756450233074,-500.0,0.0001994,2]
[381955095,1756450233084,-500.0,0.0001994,2]
[381955096,1756450233095,-500.0,0.0001994,2]
[381955097,1756450233105,-500.0,0.0001994,2]
[381955098,1756450233115,-500.0,0.0001994,2]
[381955099,1756450233126,-500.0,0.0001994,2]
[381955100,1756450233137,-500.0,0.0001994,2]
[381955101,1756450233148,-500.0,0.0001994,2]
[381955102,1756450233158,-500.0,0.0001994,2]
[381955103,1756450233168,-500.0,0.0001994,2]
[381955104,1756450233178,-500.0,0.0001994,2]
[381955105,1756450233188,-500.0,0.0001994,2]
[381955106,1756450233198,-500.0,0.0001994,2]
[381955107,1756450233208,-500.0,0.0001994,2]
[381955108,1756450233219,-500.0,0.0001994,2]
[381955109,1756450233228,-500.0,0.0001994,2]
[381955110,1756450233239,-500.0,0.0001994,2]
[381955111,1756450233249,-500.0,0.0001994,2]
[381955112,1756450233259,-498.71798613,0.0001994,2]
[381955113,1756450233268,-500.0,0.0001994,2]
[381955114,1756450233279,-500.0,0.0001994,2]
[381955115,1756450233289,-500.0,0.0001994,2]
[381955116,1756450233299,-500.0,0.0001994,2]
[381955117,1756450233309,-500.0,0.0001994,2]
[381955118,1756450233319,-500.0,0.0001994,2]
[381955119,1756450233329,-500.0,0.0001994,2]
[381955120,1756450233339,-500.0,0.0001994,2]
[381955121,1756450233351,-500.0,0.0001994,2]
[381955122,1756450233361,-500.0,0.0001994,2]
[381955123,1756450233371,-500.0,0.0001994,2]
[381955124,1756450233381,-500.0,0.0001994,2]
[381955125,1756450233392,-500.0,0.0001994,2]
[381955126,1756450233402,-500.0,0.0001994,2]
[381955127,1756450233411,-500.0,0.0001994,2]
[381955128,1756450233421,-259.10187762,0.0001994,2]
[381955129,1756450233572,-240.89812238,0.0001994,2]
[381955130,1756450233582,-237.50418741,0.0001994,2]
[381955131,1756450233591,-500.0,0.0001994,2]
[381955132,1756450233602,-160.39903279,0.0001994,2]
[381955133,1756450233614,-339.60096721,0.0001994,2]
[381955134,1756450233624,-500.0,0.0001994,2]
[381955135,1756450233634,-500.0,0.0001994,2]
[381955136,1756450233643,-152.99902279,0.0001994,2]
[381955137,1756450233655,-347.00097721,0.0001994,2]
[381955138,1756450233665,-70.8910368,0.0001994,2]
[381955139,1756450233677,-229.1089632,0.0001994,2]
[381955140,1756450233687,-151.0,0.00019943,2]
[381955141,1756450233697,-199.05647522,0.00019943,2]
[381955142,1756450233707,-151.97507828,0.00019943,2]
[381955143,1756450233717,-151.0,0.00019943,2]
[381955144,1756450233727,-500.0,0.00019973,2]
[381955145,1756450233736,-500.0,0.00019973,2]
[381955146,1756450233746,-261.41699536,0.00019973,2]
[381955147,1756450233756,-500.0,0.00019973,2]
[381955148,1756450233765,-500.0,0.00019973,2]
[381955149,1756450233775,-505.9782366,0.00019973,2]
[381955150,1756450233784,-153.25182652,0.00019973,2]
[381955151,1756450233794,-500.0,0.00019973,2]
[381955152,1756450233803,-335.49302298,0.00019973,2]
[381955153,1756450233815,-170.73926937,0.00019973,2]
[381955154,1756450233825,-500.0,0.00019973,2]
[381955155,1756450233834,-500.0,0.00019973,2]
[381955156,1756450233844,-432.41386495,0.00019973,2]
[381955157,1756450233855,-140.69735946,0.00019973,2]
[381955158,1756450233865,-500.0,0.00019973,2]
[381955159,1756450233874,-23.95392395,0.00019973,2]
[381955206,1756450238556,-940.8800004,0.00019773,2]
[381955227,1756450238756,-4059.1199996,0.00019773,2]
[381955229,1756450238766,-476.04607605,0.00019973,2]
[381955231,1756450238775,-500.0,0.00019973,2]
[381955233,1756450238785,-500.0,0.00019973,2]
[381955235,1756450238795,-501.57021454,0.00019973,2]
[381955237,1756450238805,-160.0,0.0002,3]
[381955239,1756450238814,-151.0,0.00020217,2]
[381955241,1756450238824,-250.95236295,0.00020217,2]
[381955243,1756450238833,-187.78006525,0.00020401,2]
[381955245,1756450238843,-2347.87260389,0.00020401,2]
[381955247,1756450238854,-500.0,0.00020401,2]
[381955249,1756450238863,-500.0,0.00020401,2]
[381955251,1756450238873,-500.0,0.00020401,2]
[381955253,1756450238883,-500.0,0.00020401,2]
[381955255,1756450238892,-940.47783917,0.00020401,2]
[381955258,1756450238903,-213.81738403,0.00020401,2]
[381955260,1756450238913,-250.0,0.00020401,2]
[381955262,1756450238923,-250.0,0.00020401,2]
[381955264,1756450238933,-250.0,0.00020401,2]
[381955266,1756450238943,-250.0,0.00020401,2]
[381955268,1756450238953,-2434.74389024,0.00020456,2]
[381955270,1756450238964,-151.0,0.00020478,2]
[381955272,1756450238975,-151.0,0.00020491,2]
[381955274,1756450238984,-2524.82941417,0.00020511,2]
[381955276,1756450238993,-1000.0,0.00020521,2]
[381955277,1756450239003,-829.09060518,0.00020521,2]